[Event "7th Paul Keres Memorial Festival 2026 Rapid"]
[Site "ESTONIA Resort Hotel & Spa conference center, EE"]
[Date "2026.08.02"]
[Round "7"]
[White "Merivee, Romet-Renee"]
[Black "Fridman, Daniel"]
[Result "0-1"]
[Board "6"]
[TimeControl "12+3"]
[WhiteFideId "4522540"]
[BlackFideId "11600454"]
[WhiteElo "2098"]
[BlackElo "2555"]
[BlackTitle "GM"]
[WhiteClock "0:07:19"]
[BlackClock "0:10:08"]
[Variant "Standard"]
[EndDate "2026.08.02"]
[EndTime "11:26:25"]

1. e4 {[%clk 0:12:03]}  e6 {[%clk 0:12:05]} 2. d4 {[%clk 0:12:03]}  d5 {[%clk 0:12:07]} 3. Nc3 {[%clk 0:12:05]}  Nf6 {[%clk 0:12:08]}
4. Bg5 {[%clk 0:12:04]}  dxe4 {[%clk 0:12:03]} 5. Nxe4 {[%clk 0:12:04]}  Nbd7 {[%clk 0:12:04]} 6. Nf3 {[%clk 0:12:02]}  h6 {[%clk 0:12:06]}
7. Nxf6+ {[%clk 0:11:39]}  Nxf6 {[%clk 0:12:07]} 8. Be3 {[%clk 0:11:24]}  Bd6 {[%clk 0:12:09]} 9. Bd3 {[%clk 0:11:23]}  b6 {[%clk 0:11:39]}
10. Qe2 {[%clk 0:11:24]}  O-O {[%clk 0:11:31]} 11. O-O-O {[%clk 0:11:22]}  Bb7 {[%clk 0:11:32]} 12. Ne5 {[%clk 0:10:30]}  Nd5 {[%clk 0:11:32]}
13. Rhg1 {[%clk 0:09:34]}  c5 {[%clk 0:10:55]} 14. Nc4 {[%clk 0:07:47]}  Nf4 {[%clk 0:10:11]} 15. Qg4 {[%clk 0:07:31]}  f5 {[%clk 0:10:07]}
16. Qg3 {[%clk 0:07:19]}  Nxd3+ {[%clk 0:10:08]} 0-1

[Event "7th Paul Keres Memorial Festival 2026 Rapid"]
[Site "ESTONIA Resort Hotel & Spa conference center, EE"]
[Date "2026.08.02"]
[Round "7"]
[White "Dubrovin, Robert"]
[Black "Strekalovs, Ernests"]
[Result "1-0"]
[Board "7"]
[TimeControl "12+3"]
[WhiteFideId "4501829"]
[BlackFideId "11633174"]
[WhiteElo "2268"]
[BlackElo "1817"]
[WhiteClock "0:03:55"]
[BlackClock "0:05:03"]
[Variant "Standard"]
[EndDate "2026.08.02"]
[EndTime "11:37:51"]

1. d4 {[%clk 0:12:04]}  Nf6 {[%clk 0:12:02]} 2. c4 {[%clk 0:12:04]}  e6 {[%clk 0:12:02]} 3. Nc3 {[%clk 0:12:04]}  Bb4 {[%clk 0:12:02]}
4. e3 {[%clk 0:12:04]}  c5 {[%clk 0:12:02]} 5. Bd3 {[%clk 0:12:04]}  cxd4 {[%clk 0:12:02]} 6. exd4 {[%clk 0:12:09]}  d5 {[%clk 0:12:04]}
7. Nf3 {[%clk 0:11:53]}  O-O {[%clk 0:12:05]} 8. cxd5 {[%clk 0:11:50]}  Nxd5 {[%clk 0:12:06]} 9. O-O {[%clk 0:11:51]}  Nxc3 {[%clk 0:12:00]}
10. bxc3 {[%clk 0:11:53]}  Bxc3 {[%clk 0:12:00]} 11. Bxh7+ {[%clk 0:11:48]}  Kxh7 {[%clk 0:11:50]} 12. Ng5+ {[%clk 0:11:50]}  Kg6 {[%clk 0:10:52]}
13. Qd3+ {[%clk 0:11:37]}  f5 {[%clk 0:10:50]} 14. Qxc3 {[%clk 0:11:35]}  Nc6 {[%clk 0:10:49]} 15. Qg3 {[%clk 0:11:28]}  Kf6 {[%clk 0:09:27]}
16. Nh7+ {[%clk 0:10:17]}  Kf7 {[%clk 0:09:27]} 17. Nxf8 {[%clk 0:10:10]}  Kxf8 {[%clk 0:09:29]} 18. Ba3+ {[%clk 0:09:27]}  Kg8 {[%clk 0:09:28]}
19. Rad1 {[%clk 0:09:18]}  b6 {[%clk 0:09:05]} 20. Rfe1 {[%clk 0:09:00]}  Qd5 {[%clk 0:08:55]} 21. h4 {[%clk 0:05:41]}  Ba6 {[%clk 0:08:36]}
22. h5 {[%clk 0:05:21]}  Rd8 {[%clk 0:08:19]} 23. Qg6 {[%clk 0:04:45]}  Nxd4 {[%clk 0:05:53]} 24. Bb2 {[%clk 0:04:05]}  Ne2+ {[%clk 0:05:03]}
25. Kh1 {[%clk 0:03:55]} 1-0

[Event "7th Paul Keres Memorial Festival 2026 Rapid"]
[Site "ESTONIA Resort Hotel & Spa conference center, EE"]
[Date "2026.08.02"]
[Round "7"]
[White "Olde, Grete"]
[Black "Zatonskih, Anna"]
[Result "1-0"]
[Board "8"]
[TimeControl "12+3"]
[WhiteFideId "4503104"]
[BlackFideId "14101572"]
[WhiteElo "1927"]
[BlackElo "2294"]
[WhiteTitle "WCM"]
[BlackTitle "IM"]
[WhiteClock "0:01:02"]
[BlackClock "0:00:22"]
[Variant "Standard"]
[EndDate "2026.08.02"]
[EndTime "11:44:21"]

1. e4 {[%clk 0:12:05]}  e6 {[%clk 0:12:05]} 2. d4 {[%clk 0:12:07]}  d5 {[%clk 0:12:07]} 3. exd5 {[%clk 0:12:09]}  exd5 {[%clk 0:12:09]}
4. Bd3 {[%clk 0:12:10]}  Nc6 {[%clk 0:12:08]} 5. c3 {[%clk 0:12:12]}  Bd6 {[%clk 0:12:02]} 6. Nf3 {[%clk 0:12:12]}  Bg4 {[%clk 0:11:54]}
7. O-O {[%clk 0:12:07]}  Nge7 {[%clk 0:11:55]} 8. Re1 {[%clk 0:12:02]}  Qd7 {[%clk 0:11:46]} 9. Nbd2 {[%clk 0:12:00]}  O-O-O {[%clk 0:11:44]}
10. b4 {[%clk 0:12:00]}  Rde8 {[%clk 0:11:45]} 11. Qa4 {[%clk 0:11:43]}  Kb8 {[%clk 0:11:23]} 12. b5 {[%clk 0:11:04]}  Nd8 {[%clk 0:11:24]}
13. c4 {[%clk 0:10:54]}  dxc4 {[%clk 0:11:16]} 14. Bxc4 {[%clk 0:10:41]}  Nc8 {[%clk 0:10:38]} 15. Ne5 {[%clk 0:08:57]}  Bxe5 {[%clk 0:08:13]}
16. dxe5 {[%clk 0:08:45]}  Qf5 {[%clk 0:05:15]} 17. Bb2 {[%clk 0:08:01]}  Nb6 {[%clk 0:05:00]} 18. Qb3 {[%clk 0:07:44]}  Ne6 {[%clk 0:04:11]}
19. Ne4 {[%clk 0:05:23]}  Qg6 {[%clk 0:03:13]} 20. Bxe6 {[%clk 0:04:36]}  Bxe6 {[%clk 0:03:09]} 21. Qg3 {[%clk 0:04:13]}  Rd8 {[%clk 0:03:08]}
22. Rac1 {[%clk 0:04:00]}  Qxg3 {[%clk 0:03:02]} 23. hxg3 {[%clk 0:04:00]}  Bxa2 {[%clk 0:03:03]} 24. e6 {[%clk 0:03:46]}  fxe6 {[%clk 0:02:30]}
25. Bxg7 {[%clk 0:03:47]}  Rhg8 {[%clk 0:02:29]} 26. Be5 {[%clk 0:03:45]}  Rc8 {[%clk 0:01:49]} 27. Nf6 {[%clk 0:03:31]}  Rg7 {[%clk 0:00:55]}
28. Red1 {[%clk 0:01:56]}  Rf7 {[%clk 0:00:49]} 29. Ne4 {[%clk 0:01:48]}  Bc4 {[%clk 0:00:33]} 30. Nc5 {[%clk 0:01:36]}  Bxb5 {[%clk 0:00:28]}
31. Nxe6 {[%clk 0:01:36]}  Bc6 {[%clk 0:00:29]} 32. Nd8 {[%clk 0:01:10]}  Bd5 {[%clk 0:00:24]} 33. Nxf7 {[%clk 0:01:10]}  Bxf7 {[%clk 0:00:26]}
34. Rxc7 {[%clk 0:00:58]}  Rxc7 {[%clk 0:00:23]} 35. Rd8+ {[%clk 0:01:00]}  Nc8 {[%clk 0:00:22]} 36. Rd7 {[%clk 0:01:02]}  Bg6 {[%clk 0:00:00]} 1-0

[Event "7th Paul Keres Memorial Festival 2026 Rapid"]
[Site "ESTONIA Resort Hotel & Spa conference center, EE"]
[Date "2026.08.02"]
[Round "7"]
[White "Pakalns, Raivis Kristians"]
[Black "Jakubowski, Krzysztof"]
[Result "0-1"]
[Board "9"]
[TimeControl "12+3"]
[WhiteFideId "11607483"]
[BlackFideId "1112848"]
[WhiteElo "1995"]
[BlackElo "2365"]
[BlackTitle "GM"]
[WhiteClock "0:00:22"]
[BlackClock "0:00:10"]
[Variant "Standard"]
[EndDate "2026.08.02"]
[EndTime "11:46:27"]

1. e4 {[%clk 0:12:05]}  c5 {[%clk 0:12:04]} 2. Nc3 {[%clk 0:12:06]}  e6 {[%clk 0:12:05]} 3. f4 {[%clk 0:12:00]}  a6 {[%clk 0:11:50]}
4. g3 {[%clk 0:11:55]}  b5 {[%clk 0:11:50]} 5. Bg2 {[%clk 0:11:53]}  Bb7 {[%clk 0:11:51]} 6. d3 {[%clk 0:11:38]}  Nf6 {[%clk 0:11:46]}
7. Qe2 {[%clk 0:11:29]}  d5 {[%clk 0:11:12]} 8. exd5 {[%clk 0:10:53]}  Nxd5 {[%clk 0:10:56]} 9. Nf3 {[%clk 0:10:47]}  Be7 {[%clk 0:10:29]}
10. Bd2 {[%clk 0:10:43]}  O-O {[%clk 0:10:26]} 11. O-O {[%clk 0:10:42]}  Nc6 {[%clk 0:10:03]} 12. Ne4 {[%clk 0:10:15]}  Nd4 {[%clk 0:09:30]}
13. Nxd4 {[%clk 0:09:50]}  cxd4 {[%clk 0:09:31]} 14. f5 {[%clk 0:09:07]}  exf5 {[%clk 0:08:06]} 15. Rxf5 {[%clk 0:09:06]}  g6 {[%clk 0:08:00]}
16. Rff1 {[%clk 0:07:47]}  Rc8 {[%clk 0:05:28]} 17. Rac1 {[%clk 0:06:37]}  Qd7 {[%clk 0:04:19]} 18. Ng5 {[%clk 0:05:38]}  Rce8 {[%clk 0:02:51]}
19. Qf3 {[%clk 0:04:49]}  Bc5 {[%clk 0:02:38]} 20. Ne4 {[%clk 0:04:27]}  Be7 {[%clk 0:02:17]} 21. Bh6 {[%clk 0:04:11]}  f5 {[%clk 0:01:45]}
22. Nd2 {[%clk 0:04:04]}  Ba8 {[%clk 0:01:32]} 23. Qf2 {[%clk 0:03:40]}  Rf7 {[%clk 0:01:00]} 24. Rce1 {[%clk 0:02:32]}  Bf6 {[%clk 0:00:57]}
25. Nb3 {[%clk 0:02:17]}  Ne3 {[%clk 0:00:43]} 26. Bxe3 {[%clk 0:02:07]}  Bxg2 {[%clk 0:00:38]} 27. Kxg2 {[%clk 0:01:46]}  dxe3 {[%clk 0:00:39]}
28. Rxe3 {[%clk 0:01:45]}  Rxe3 {[%clk 0:00:38]} 29. Qxe3 {[%clk 0:01:46]}  Qc6+ {[%clk 0:00:39]} 30. Qf3 {[%clk 0:01:19]}  Qxc2+ {[%clk 0:00:41]}
31. Rf2 {[%clk 0:01:21]}  Qb1 {[%clk 0:00:33]} 32. Qa8+ {[%clk 0:01:08]}  Kg7 {[%clk 0:00:33]} 33. Qxa6 {[%clk 0:01:09]}  Qxd3 {[%clk 0:00:33]}
34. Qc6 {[%clk 0:00:56]}  Re7 {[%clk 0:00:30]} 35. Nc5 {[%clk 0:00:53]}  Qe3 {[%clk 0:00:26]} 36. Qxb5 {[%clk 0:00:41]}  Bd4 {[%clk 0:00:21]}
37. Rc2 {[%clk 0:00:43]}  Qg1+ {[%clk 0:00:11]} 38. Kh3 {[%clk 0:00:45]}  g5 {[%clk 0:00:13]} 39. Qc6 {[%clk 0:00:27]}  Bxc5 {[%clk 0:00:08]}
40. Qxc5 {[%clk 0:00:28]}  Qf1+ {[%clk 0:00:09]} 41. Rg2 {[%clk 0:00:25]}  Rf7 {[%clk 0:00:04]} 42. Qf2 {[%clk 0:00:20]}  g4+ {[%clk 0:00:05]}
43. Kh4 {[%clk 0:00:22]}  Qc1 {[%clk 0:00:05]} 44. Qf4 {[%clk 0:00:23]}  Qc6 {[%clk 0:00:04]} 45. Qg5+ {[%clk 0:00:21]}  Qg6 {[%clk 0:00:04]}
46. Qxg6+ {[%clk 0:00:22]}  hxg6 {[%clk 0:00:06]} 47. b4 {[%clk 0:00:20]}  Kf6 {[%clk 0:00:07]} 48. b5 {[%clk 0:00:22]}  Rh7# {[%clk 0:00:10]} 0-1

[Event "7th Paul Keres Memorial Festival 2026 Rapid"]
[Site "ESTONIA Resort Hotel & Spa conference center, EE"]
[Date "2026.08.02"]
[Round "8"]
[White "Kazakouski, Valery"]
[Black "Maltsevskaya, Aleksandra"]
[Result "1-0"]
[Board "1"]
[TimeControl "12+3"]
[WhiteFideId "13507443"]
[BlackFideId "24174041"]
[WhiteElo "2528"]
[BlackElo "2369"]
[WhiteTitle "GM"]
[BlackTitle "IM"]
[WhiteClock "0:02:38"]
[BlackClock "0:00:05"]
[Variant "Standard"]
[EndDate "2026.08.02"]
[EndTime "12:20:29"]

1. d4 {[%clk 0:12:05]}  Nf6 {[%clk 0:12:03]} 2. c4 {[%clk 0:12:04]}  e6 {[%clk 0:12:04]} 3. Nc3 {[%clk 0:12:04]}  d5 {[%clk 0:12:04]}
4. Bg5 {[%clk 0:12:05]}  Bb4 {[%clk 0:11:54]} 5. cxd5 {[%clk 0:12:03]}  exd5 {[%clk 0:11:55]} 6. e3 {[%clk 0:12:03]}  h6 {[%clk 0:11:40]}
7. Bh4 {[%clk 0:11:46]}  O-O {[%clk 0:11:11]} 8. Bd3 {[%clk 0:11:42]}  c5 {[%clk 0:10:45]} 9. a3 {[%clk 0:11:36]}  Bxc3+ {[%clk 0:09:18]}
10. bxc3 {[%clk 0:11:37]}  cxd4 {[%clk 0:09:18]} 11. cxd4 {[%clk 0:10:12]}  Nc6 {[%clk 0:09:17]} 12. Ne2 {[%clk 0:10:02]}  Qa5+ {[%clk 0:08:39]}
13. Qd2 {[%clk 0:08:41]}  Nd7 {[%clk 0:08:14]} 14. Qxa5 {[%clk 0:07:59]}  Nxa5 {[%clk 0:08:15]} 15. Be7 {[%clk 0:08:00]}  Re8 {[%clk 0:08:16]}
16. Bb4 {[%clk 0:08:02]}  Nc4 {[%clk 0:07:30]} 17. Nf4 {[%clk 0:07:40]}  Ncb6 {[%clk 0:04:48]} 18. h4 {[%clk 0:07:16]}  Nf8 {[%clk 0:04:01]}
19. O-O {[%clk 0:04:48]}  Ne6 {[%clk 0:04:02]} 20. Bb5 {[%clk 0:04:31]}  Bd7 {[%clk 0:00:25]} 21. Bxd7 {[%clk 0:04:31]}  Nxd7 {[%clk 0:00:26]}
22. Nxd5 {[%clk 0:04:32]}  a5 {[%clk 0:00:07]} 23. Bd2 {[%clk 0:04:27]}  b6 {[%clk 0:00:06]} 24. Rab1 {[%clk 0:04:26]}  Reb8 {[%clk 0:00:07]}
25. a4 {[%clk 0:04:24]}  f6 {[%clk 0:00:06]} 26. Rfc1 {[%clk 0:04:25]}  Kf7 {[%clk 0:00:06]} 27. Rc6 {[%clk 0:04:05]}  Rc8 {[%clk 0:00:07]}
28. Rxc8 {[%clk 0:03:48]}  Rxc8 {[%clk 0:00:09]} 29. Nxb6 {[%clk 0:03:48]}  Nxb6 {[%clk 0:00:07]} 30. Rxb6 {[%clk 0:03:50]}  Rc4 {[%clk 0:00:09]}
31. Rb5 {[%clk 0:03:37]}  Rxa4 {[%clk 0:00:07]} 32. Rxa5 {[%clk 0:03:39]}  Rc4 {[%clk 0:00:09]} 33. h5 {[%clk 0:03:32]}  Nc7 {[%clk 0:00:05]}
34. Kf1 {[%clk 0:03:31]}  Ke6 {[%clk 0:00:05]} 35. Ke2 {[%clk 0:03:30]}  Rc2 {[%clk 0:00:06]} 36. Kd3 {[%clk 0:03:11]}  Rb2 {[%clk 0:00:07]}
37. e4 {[%clk 0:02:58]}  Kd7 {[%clk 0:00:04]} 38. Ra7 {[%clk 0:02:53]}  Kc8 {[%clk 0:00:05]} 39. d5 {[%clk 0:02:51]}  Kb8 {[%clk 0:00:05]}
40. Ra4 {[%clk 0:02:46]}  Kc8 {[%clk 0:00:05]} 41. g4 {[%clk 0:02:36]}  Nb5 {[%clk 0:00:06]} 42. Rb4 {[%clk 0:02:36]}  Rxb4 {[%clk 0:00:04]}
43. Bxb4 {[%clk 0:02:37]}  Kd7 {[%clk 0:00:05]} 44. Bf8 {[%clk 0:02:38]} 1-0

[Event "7th Paul Keres Memorial Festival 2026 Rapid"]
[Site "ESTONIA Resort Hotel & Spa conference center, EE"]
[Date "2026.08.02"]
[Round "8"]
[White "Povilaitis, Tomas"]
[Black "Laurusas, Tomas"]
[Result "0-1"]
[Board "2"]
[TimeControl "12+3"]
[WhiteFideId "12811700"]
[BlackFideId "12803731"]
[WhiteElo "2154"]
[BlackElo "2462"]
[BlackTitle "GM"]
[WhiteClock "0:00:07"]
[BlackClock "0:01:49"]
[Variant "Standard"]
[EndDate "2026.08.02"]
[EndTime "12:23:55"]

1. e4 {[%clk 0:12:05]}  c6 {[%clk 0:11:59]} 2. c4 {[%clk 0:12:07]}  d5 {[%clk 0:11:57]} 3. exd5 {[%clk 0:12:09]}  cxd5 {[%clk 0:11:59]}
4. cxd5 {[%clk 0:12:11]}  Nf6 {[%clk 0:12:00]} 5. Qa4+ {[%clk 0:12:13]}  Nbd7 {[%clk 0:12:02]} 6. Nc3 {[%clk 0:12:15]}  g6 {[%clk 0:12:01]}
7. Nf3 {[%clk 0:12:17]}  Bg7 {[%clk 0:12:03]} 8. Bc4 {[%clk 0:12:19]}  O-O {[%clk 0:12:03]} 9. d3 {[%clk 0:12:21]}  a6 {[%clk 0:12:04]}
10. Qa3 {[%clk 0:12:23]}  b6 {[%clk 0:12:05]} 11. O-O {[%clk 0:12:24]}  Bb7 {[%clk 0:12:07]} 12. Re1 {[%clk 0:12:24]}  Re8 {[%clk 0:12:09]}
13. Be3 {[%clk 0:12:25]}  b5 {[%clk 0:10:16]} 14. Bb3 {[%clk 0:12:27]}  Bf8 {[%clk 0:10:18]} 15. Qb4 {[%clk 0:12:27]}  Nb6 {[%clk 0:09:58]}
16. Bxb6 {[%clk 0:12:05]}  Qxb6 {[%clk 0:10:00]} 17. Qf4 {[%clk 0:09:11]}  Qd6 {[%clk 0:06:25]} 18. Ne5 {[%clk 0:09:00]}  Bg7 {[%clk 0:06:10]}
19. Ne4 {[%clk 0:08:28]}  Nxe4 {[%clk 0:06:11]} 20. Qxf7+ {[%clk 0:06:26]}  Kh8 {[%clk 0:06:13]} 21. Qxe8+ {[%clk 0:06:27]}  Rxe8 {[%clk 0:06:15]}
22. Nf7+ {[%clk 0:06:30]}  Kg8 {[%clk 0:06:17]} 23. Nxd6 {[%clk 0:06:32]}  Nxd6 {[%clk 0:06:19]} 24. Rac1 {[%clk 0:06:34]}  Bxb2 {[%clk 0:05:30]}
25. Rc7 {[%clk 0:06:36]}  Kf8 {[%clk 0:04:41]} 26. Kf1 {[%clk 0:05:13]}  Bd4 {[%clk 0:04:33]} 27. Re6 {[%clk 0:04:56]}  Bc8 {[%clk 0:04:35]}
28. Re2 {[%clk 0:04:39]}  Bf5 {[%clk 0:04:36]} 29. Bc2 {[%clk 0:04:23]}  Bb6 {[%clk 0:04:21]} 30. Rc6 {[%clk 0:04:19]}  Rb8 {[%clk 0:04:22]}
31. h3 {[%clk 0:03:58]}  a5 {[%clk 0:04:14]} 32. g4 {[%clk 0:03:37]}  Bd7 {[%clk 0:04:16]} 33. Rc3 {[%clk 0:03:40]}  Bd4 {[%clk 0:03:50]}
34. Rb3 {[%clk 0:03:37]}  Rc8 {[%clk 0:03:00]} 35. Rb1 {[%clk 0:03:29]}  g5 {[%clk 0:02:37]} 36. Kg2 {[%clk 0:03:16]}  Rc5 {[%clk 0:02:35]}
37. Kg3 {[%clk 0:02:45]}  h6 {[%clk 0:02:13]} 38. f4 {[%clk 0:02:37]}  Bf6 {[%clk 0:02:05]} 39. fxg5 {[%clk 0:02:34]}  hxg5 {[%clk 0:02:07]}
40. Bb3 {[%clk 0:00:59]}  a4 {[%clk 0:02:08]} 41. Bc2 {[%clk 0:00:43]}  Rxd5 {[%clk 0:02:10]} 42. Rb4 {[%clk 0:00:26]}  Bc3 {[%clk 0:02:03]}
43. Rb1 {[%clk 0:00:29]}  Be5+ {[%clk 0:01:58]} 44. Kg2 {[%clk 0:00:29]}  Bc6 {[%clk 0:01:58]} 45. Kf2 {[%clk 0:00:25]}  Bf6 {[%clk 0:01:46]}
46. Kg3 {[%clk 0:00:26]}  Rd4 {[%clk 0:01:47]} 47. Kf2 {[%clk 0:00:17]}  Rf4+ {[%clk 0:01:47]} 48. Kg3 {[%clk 0:00:09]}  Rf3+ {[%clk 0:01:43]}
49. Kh2 {[%clk 0:00:11]}  Bd5 {[%clk 0:01:43]} 50. a3 {[%clk 0:00:10]}  Ke8 {[%clk 0:01:40]} 51. Rg1 {[%clk 0:00:10]}  Kd7 {[%clk 0:01:37]}
52. Rg3 {[%clk 0:00:11]}  Rf1 {[%clk 0:01:35]} 53. Rg1 {[%clk 0:00:12]}  Rxg1 {[%clk 0:01:35]} 54. Kxg1 {[%clk 0:00:14]}  Bb2 {[%clk 0:01:37]}
55. Bxa4 {[%clk 0:00:16]}  Bd4+ {[%clk 0:01:39]} 56. Kh2 {[%clk 0:00:16]}  bxa4 {[%clk 0:01:40]} 57. Kg3 {[%clk 0:00:16]}  Bf6 {[%clk 0:01:42]}
58. d4 {[%clk 0:00:07]}  Nb5 {[%clk 0:01:42]} 59. Rb2 {[%clk 0:00:07]}  Bb3 {[%clk 0:01:44]} 60. Rd2 {[%clk 0:00:05]}  Nxa3 {[%clk 0:01:45]}
61. d5 {[%clk 0:00:06]}  Nc4 {[%clk 0:01:48]} 62. Rd3 {[%clk 0:00:07]}  Kd6 {[%clk 0:01:49]} 0-1

[Event "7th Paul Keres Memorial Festival 2026 Rapid"]
[Site "ESTONIA Resort Hotel & Spa conference center, EE"]
[Date "2026.08.02"]
[Round "8"]
[White "Mayorau, Mikita"]
[Black "Lagarde, Maxime"]
[Result "0-1"]
[Board "3"]
[TimeControl "12+3"]
[WhiteFideId "13501720"]
[BlackFideId "662399"]
[WhiteElo "2392"]
[BlackElo "2599"]
[WhiteTitle "GM"]
[BlackTitle "GM"]
[WhiteClock "0:01:33"]
[BlackClock "0:00:07"]
[Variant "Standard"]
[EndDate "2026.08.02"]
[EndTime "12:21:52"]

1. d4 {[%clk 0:12:05]}  Nf6 {[%clk 0:12:01]} 2. c4 {[%clk 0:12:06]}  b6 {[%clk 0:12:03]} 3. f3 {[%clk 0:12:04]}  Nc6 {[%clk 0:12:05]}
4. Nc3 {[%clk 0:12:03]}  e5 {[%clk 0:11:52]} 5. d5 {[%clk 0:12:01]}  Na5 {[%clk 0:11:36]} 6. e4 {[%clk 0:10:49]}  c6 {[%clk 0:11:37]}
7. Be3 {[%clk 0:10:26]}  Ba6 {[%clk 0:11:14]} 8. b3 {[%clk 0:09:54]}  Bb4 {[%clk 0:11:11]} 9. Nge2 {[%clk 0:09:54]}  cxd5 {[%clk 0:11:01]}
10. exd5 {[%clk 0:09:55]}  Bxc4 {[%clk 0:10:07]} 11. bxc4 {[%clk 0:09:50]}  Nxc4 {[%clk 0:10:08]} 12. Bg5 {[%clk 0:09:03]}  Rc8 {[%clk 0:09:54]}
13. Qb3 {[%clk 0:08:45]}  Qe7 {[%clk 0:08:01]} 14. Rb1 {[%clk 0:08:01]}  a5 {[%clk 0:07:00]} 15. Rc1 {[%clk 0:07:42]}  Qc5 {[%clk 0:06:49]}
16. a3 {[%clk 0:04:55]}  Bxa3 {[%clk 0:05:58]} 17. Na4 {[%clk 0:04:27]}  Qb4+ {[%clk 0:05:26]} 18. Qxb4 {[%clk 0:04:28]}  Bxb4+ {[%clk 0:05:28]}
19. Kf2 {[%clk 0:04:03]}  Nxd5 {[%clk 0:05:15]} 20. Ng3 {[%clk 0:03:50]}  b5 {[%clk 0:05:09]} 21. Bxc4 {[%clk 0:03:47]}  bxc4 {[%clk 0:04:48]}
22. Rhd1 {[%clk 0:03:43]}  Ne7 {[%clk 0:04:24]} 23. Bxe7 {[%clk 0:02:36]}  Kxe7 {[%clk 0:04:25]} 24. Nf5+ {[%clk 0:02:21]}  Ke6 {[%clk 0:04:26]}
25. Nxg7+ {[%clk 0:02:11]}  Kf6 {[%clk 0:04:28]} 26. Nh5+ {[%clk 0:02:14]}  Ke7 {[%clk 0:04:21]} 27. Ke2 {[%clk 0:01:37]}  Rc6 {[%clk 0:04:21]}
28. Ng3 {[%clk 0:01:27]}  Ke6 {[%clk 0:04:19]} 29. Ne4 {[%clk 0:01:25]}  d5 {[%clk 0:03:58]} 30. Ng5+ {[%clk 0:01:27]}  Kf6 {[%clk 0:04:00]}
31. Rxd5 {[%clk 0:01:27]}  Kxg5 {[%clk 0:04:01]} 32. Rxe5+ {[%clk 0:01:29]}  Kf6 {[%clk 0:04:02]} 33. Re4 {[%clk 0:01:14]}  c3 {[%clk 0:03:55]}
34. Rc2 {[%clk 0:01:10]}  Rd8 {[%clk 0:03:36]} 35. Re3 {[%clk 0:01:10]}  Rd2+ {[%clk 0:03:13]} 36. Rxd2 {[%clk 0:01:12]}  cxd2 {[%clk 0:03:15]}
37. Nb2 {[%clk 0:01:05]}  Re6 {[%clk 0:02:34]} 38. Rxe6+ {[%clk 0:00:52]}  Kxe6 {[%clk 0:02:35]} 39. Nd3 {[%clk 0:00:45]}  Bc3 {[%clk 0:01:54]}
40. Nc5+ {[%clk 0:00:26]}  Kd5 {[%clk 0:01:53]} 41. Ne4 {[%clk 0:00:25]}  Kd4 {[%clk 0:01:49]} 42. Kd1 {[%clk 0:00:20]}  a4 {[%clk 0:01:47]}
43. Kc2 {[%clk 0:00:21]}  Bb4 {[%clk 0:01:44]} 44. Ng5 {[%clk 0:00:09]}  a3 {[%clk 0:01:41]} 45. Ne4 {[%clk 0:00:07]}  d1=Q+ {[%clk 0:01:33]} 0-1

[Event "7th Paul Keres Memorial Festival 2026 Rapid"]
[Site "ESTONIA Resort Hotel & Spa conference center, EE"]
[Date "2026.08.02"]
[Round "8"]
[White "Fridman, Daniel"]
[Black "Olde, Grete"]
[Result "1-0"]
[Board "4"]
[TimeControl "12+3"]
[WhiteFideId "11600454"]
[BlackFideId "4503104"]
[WhiteElo "2555"]
[BlackElo "1927"]
[WhiteTitle "GM"]
[BlackTitle "WCM"]
[WhiteClock "0:05:56"]
[BlackClock "0:04:34"]
[Variant "Standard"]
[EndDate "2026.08.02"]
[EndTime "12:10:46"]

1. d4 {[%clk 0:12:04]}  d5 {[%clk 0:12:05]} 2. Nf3 {[%clk 0:12:05]}  Nf6 {[%clk 0:12:06]} 3. c4 {[%clk 0:12:07]}  e6 {[%clk 0:12:08]}
4. g3 {[%clk 0:12:08]}  Be7 {[%clk 0:12:09]} 5. Bg2 {[%clk 0:12:09]}  O-O {[%clk 0:12:10]} 6. Nc3 {[%clk 0:12:11]}  b6 {[%clk 0:11:29]}
7. Ne5 {[%clk 0:12:11]}  Bb7 {[%clk 0:11:20]} 8. O-O {[%clk 0:12:11]}  Na6 {[%clk 0:10:34]} 9. Bf4 {[%clk 0:11:56]}  c5 {[%clk 0:10:18]}
10. e3 {[%clk 0:11:38]}  Rc8 {[%clk 0:10:01]} 11. h4 {[%clk 0:10:45]}  Ba8 {[%clk 0:09:17]} 12. Qa4 {[%clk 0:09:59]}  Nb4 {[%clk 0:08:10]}
13. a3 {[%clk 0:09:06]}  Nc6 {[%clk 0:08:00]} 14. cxd5 {[%clk 0:08:48]}  exd5 {[%clk 0:07:25]} 15. Bh3 {[%clk 0:08:02]}  Rc7 {[%clk 0:07:10]}
16. Nb5 {[%clk 0:07:23]}  Rc8 {[%clk 0:06:27]} 17. Nxa7 {[%clk 0:05:56]}  Nxa7 {[%clk 0:06:03]} 18. Qxa7 {[%clk 0:05:57]}  Rc7 {[%clk 0:05:21]}
19. Qxb6 {[%clk 0:05:56]}  cxd4 {[%clk 0:04:34]} 20. Nxf7 {[%clk 0:05:56]} 1-0

[Event "7th Paul Keres Memorial Festival 2026 Rapid"]
[Site "ESTONIA Resort Hotel & Spa conference center, EE"]
[Date "2026.08.02"]
[Round "8"]
[White "Harikrishnan.A.Ra"]
[Black "Dubrovin, Robert"]
[Result "1-0"]
[Board "5"]
[TimeControl "12+3"]
[WhiteFideId "5081483"]
[BlackFideId "4501829"]
[WhiteElo "2404"]
[BlackElo "2268"]
[WhiteTitle "GM"]
[WhiteClock "0:00:01"]
[BlackClock "0:00:02"]
[Variant "Standard"]
[EndDate "2026.08.02"]
[EndTime "12:22:05"]

1. d4 {[%clk 0:00:15]}  e6 {[%clk 0:00:15]} 2. Bf4 {[%clk 0:00:12]}  d5 {[%clk 0:00:07]} 3. e3 {[%clk 0:00:10]}  Nf6 {[%clk 0:00:02]}
4. c3 {[%clk 0:00:08]}  Bd6 {[%clk 0:00:01]} 5. Nd2 {[%clk 0:00:07]}  Bxf4 {[%clk 0:00:01]} 6. exf4 {[%clk 0:00:06]}  O-O {[%clk 0:00:00]}
7. Ngf3 {[%clk 0:00:03]}  b6 {[%clk 0:00:00]} 8. Bd3 {[%clk 0:00:01]}  Ba6 {[%clk 0:00:00]} 9. Bxa6 {[%clk 0:00:01]}  Nxa6 {[%clk 0:00:00]}
10. h4 {[%clk 0:00:00]}  c5 {[%clk 0:00:00]} 11. Qe2 {[%clk 0:00:00]}  Nb8 {[%clk 0:00:00]} 12. h5 {[%clk 0:00:00]}  Nc6 {[%clk 0:00:00]}
13. h6 {[%clk 0:00:00]}  g6 {[%clk 0:00:00]} 14. Ne5 {[%clk 0:00:00]}  Qc7 {[%clk 0:00:00]} 15. Nxc6 {[%clk 0:00:00]}  Qxc6 {[%clk 0:00:00]}
16. Qe5 {[%clk 0:00:00]}  Ne8 {[%clk 0:00:00]} 17. O-O {[%clk 0:00:00]}  f6 {[%clk 0:00:00]} 18. Qe3 {[%clk 0:00:00]}  cxd4 {[%clk 0:00:00]}
19. cxd4 {[%clk 0:00:00]}  Qd7 {[%clk 0:00:00]} 20. Rfe1 {[%clk 0:00:00]}  Kf7 {[%clk 0:00:00]} 21. Rac1 {[%clk 0:00:00]}  Rc8 {[%clk 0:00:00]}
22. Rxc8 {[%clk 0:00:00]}  Qxc8 {[%clk 0:00:00]} 23. Qa3 {[%clk 0:00:00]}  Qd7 {[%clk 0:00:00]} 24. g4 {[%clk 0:00:00]}  Nd6 {[%clk 0:00:00]}
25. g5 {[%clk 0:00:00]}  Nc4 {[%clk 0:00:00]} 26. Nxc4 {[%clk 0:00:00]}  dxc4 {[%clk 0:00:00]} 27. gxf6 {[%clk 0:00:00]}  Re8 {[%clk 0:00:00]}
28. Re5 {[%clk 0:00:00]}  Kxf6 {[%clk 0:00:00]} 29. Qc3 {[%clk 0:00:00]}  Kf7 {[%clk 0:00:00]} 30. Kf1 {[%clk 0:00:00]}  Rc8 {[%clk 0:00:00]}
31. a4 {[%clk 0:00:00]}  Qxa4 {[%clk 0:00:00]} 32. Qf3 {[%clk 0:00:00]}  Qc6 {[%clk 0:00:00]} 33. d5 {[%clk 0:00:00]}  exd5 {[%clk 0:00:00]}
34. f5 {[%clk 0:00:00]}  Kg8 {[%clk 0:00:00]} 35. Re6 {[%clk 0:00:00]}  Qd7 {[%clk 0:00:00]} 36. Qe3 {[%clk 0:00:00]}  Rf8 {[%clk 0:00:00]}
37. fxg6 {[%clk 0:00:00]}  d4 {[%clk 0:00:00]} 38. Qe5 {[%clk 0:00:00]}  hxg6 {[%clk 0:00:00]} 39. Rxg6+ {[%clk 0:00:00]} 1-0